bitfinex/quotes_ETHUSD_20250810
["timestamp","ask_amount","ask_price","bid_price","bid_amount"]
[1754815595238,1e-08,4211.9,4211.8,10.56353557]
[1754815595452,1e-08,4211.9,4211.8,6.90753557]
[1754815595651,1e-08,4211.9,4211.8,10.56353557]
[1754815597268,1e-08,4211.9,4211.8,10.12853557]
[1754815600255,1e-08,4211.9,4211.8,10.12753557]
[1754815601949,1e-08,4211.9,4211.8,11.02483557]
[1754815602380,1e-08,4211.9,4211.8,10.56253557]
[1754815603151,1e-08,4211.9,4211.8,10.56247561]
[1754815603475,1e-08,4211.9,4211.8,10.12747561]
[1754815604085,1e-08,4211.9,4211.8,6.47247561]
[1754815604380,0.95550001,4211.9,4211.8,5.92247561]
[1754815605183,0.95550001,4211.9,4211.8,0.21979384]
[1754815605354,0.95550001,4211.9,4211.8,2.59407561]
[1754815605546,0.95550001,4211.9,4211.8,5.59407561]
[1754815608460,0.49270001,4211.9,4211.8,5.59407561]
[1754815608662,1e-08,4211.9,4211.8,5.59407561]
[1754815610081,1e-08,4211.9,4211.8,13.89006135]
[1754815610260,1e-08,4211.9,4211.8,14.81286135]
[1754815610466,1e-08,4211.9,4211.8,14.34226135]
[1754815611256,1e-08,4211.9,4211.8,14.81286135]
[1754815611663,1e-08,4211.9,4211.8,6.04627561]
[1754815612879,1e-08,4211.9,4211.8,5.59407561]
[1754815615993,0.44740001,4211.9,4211.8,5.59407561]
[1754815616292,0.91530001,4211.9,4211.8,5.59407561]
[1754815616497,0.46790001,4211.9,4211.8,5.59407561]
[1754815616996,1e-08,4211.9,4211.8,5.59407561]
[1754815618300,1e-08,4211.9,4211.8,6.04627561]
[1754815618592,1e-08,4211.9,4211.8,5.59407561]
[1754815621095,0.91530001,4211.9,4211.8,5.59407561]
[1754815621913,0.46790001,4211.9,4211.8,5.59407561]
[1754815622496,1e-08,4211.9,4211.8,6.04627561]
[1754815622797,1e-08,4211.9,4211.8,6.51687561]
[1754815622997,1e-08,4211.9,4211.8,7.18527561]
[1754815625601,1e-08,4211.9,4211.8,19.13226135]
[1754815626486,1e-08,4211.9,4211.8,19.34226135]
[1754815626682,1e-08,4211.9,4211.8,5.92247561]
[1754815626888,1e-08,4211.9,4211.8,15.42274538]
[1754815627204,1e-08,4211.9,4211.8,16.34554538]
[1754815627587,1e-08,4211.9,4211.8,15.87494538]
[1754815627992,1e-08,4211.9,4211.8,15.42274538]
[1754815628390,1e-08,4211.9,4211.8,16.34554538]
[1754815628903,1e-08,4211.9,4211.8,15.87494538]
[1754815629913,1e-08,4211.9,4211.8,15.42274538]
[1754815630104,1e-08,4211.9,4211.8,5.92247561]
[1754815630509,0.91530001,4211.9,4211.8,5.80407561]
[1754815631517,0.46790001,4211.9,4211.8,5.80407561]
[1754815631687,1e-08,4211.9,4211.8,5.80407561]
[1754815632515,1e-08,4211.9,4211.8,5.59407561]
[1754815632685,1e-08,4211.9,4211.8,5.71247561]
[1754815633285,1e-08,4211.9,4211.8,3.33819384]
[1754815633517,0.46790001,4211.9,4211.8,5.59407561]
[1754815633712,1e-08,4211.9,4211.8,5.59407561]
[1754815633918,1e-08,4211.9,4211.8,3.001]
[1754815633919,0.44740001,4211.9,4211.8,3.001]
[1754815634098,0.91530001,4211.9,4211.8,5.59373541]
[1754815634415,0.46790001,4211.9,4211.8,5.59373541]
[1754815634717,1e-08,4211.9,4211.8,5.59373541]
[1754815636322,0.46790001,4211.9,4211.8,5.59373541]
[1754815636818,1e-08,4211.9,4211.8,5.59373541]
[1754815641924,1e-08,4211.9,4211.8,3.21945364]
[1754815642433,0.94200001,4211.9,4211.8,3.21945364]
[1754815642628,1.06040001,4211.9,4211.8,3.21945364]
[1754815643110,1.40384715,4211.9,4211.8,3.21945364]
[1754815643510,1.06040001,4211.9,4211.8,3.21945364]
[1754815644701,0.60270001,4211.9,4211.8,3.21945364]
[1754815644934,0.11840001,4211.9,4211.8,3.21945364]
[1754815645549,0.11840001,4211.9,4211.8,6.51313541]
[1754815645841,1e-08,4211.9,4211.8,6.51313541]
[1754815646039,1e-08,4211.9,4211.8,10.16113541]
[1754815646546,1e-08,4211.9,4211.8,10.71113541]
[1754815646851,1e-08,4211.9,4211.8,12.13613541]
[1754815647008,1e-08,4211.9,4211.8,12.42078661]
[1754815648706,1e-08,4211.9,4211.8,10.99578661]
[1754815649118,1e-08,4211.9,4211.8,10.71113541]
[1754815650443,1e-08,4211.9,4211.8,10.92113541]
[1754815650744,1e-08,4211.9,4211.8,10.45033541]
[1754815651038,1e-08,4211.9,4211.8,10.92013541]
[1754815651335,1e-08,4211.9,4211.8,10.70168177]
[1754815651526,1e-08,4211.9,4211.8,10.91979882]
[1754815655039,1e-08,4211.9,4211.8,10.70979882]
[1754815656438,0.002,4212.4,4211.8,10.70979882]
[1754815656439,1e-08,4212.4,4212.3,5.92399995]
[1754815656640,1e-08,4212.4,4212.3,18.08410274]
[1754815656818,1e-08,4212.4,4212.3,19.00350274]
[1754815657150,1e-08,4212.4,4212.3,19.12190274]
[1754815658347,0.002,4212.8,4212.7,2.37377453]
[1754815658545,0.002,4212.8,4212.7,17.53387732]
[1754815658857,1e-08,4212.9,4212.8,5.92371819]
[1754815659022,1e-08,4212.9,4212.8,6.14183524]
[1754815659214,1e-08,4212.9,4212.8,7.06123524]
[1754815659937,1e-08,4213.2,4213.1,14.2195349]
[1754815660141,1e-08,4213.2,4213.1,18.20105195]
[1754815660336,1e-08,4213.2,4213.1,19.12045195]
[1754815660918,1e-08,4213.2,4213.1,18.20105195]
[1754815661453,1e-08,4213.2,4213.1,15.00565195]
[1754815661627,1e-08,4213.2,4213.1,18.20105195]
[1754815665546,1e-08,4213.2,4213.1,19.12045195]
[1754815666657,0.002,4213.7,4213.6,2.37326751]
[1754815666841,0.002,4213.7,4213.6,18.4097703]
[1754815667046,0.002,4213.7,4213.6,19.1191703]
[1754815667576,0.002,4213.7,4213.6,18.1997703]
[1754815667767,0.002,4213.7,4213.6,18.1987703]
[1754815668756,0.002,4213.7,4213.6,20.0565703]
[1754815669268,0.002,4213.7,4213.6,20.5071703]
[1754815669959,0.002,4214.1,4214.0,2.92304224]
[1754815670274,0.04,4214.9,4214.5,0.55]
[1754815670478,0.04,4214.9,4214.8,13.66857755]
[1754815670643,0.04,4214.9,4214.8,17.5296946]
[1754815670829,0.04,4214.9,4214.8,18.5124946]
[1754815671231,0.04,4214.9,4214.8,18.0796946]
[1754815671853,0.04,4214.9,4214.8,19.11005697]
[1754815672066,0.04,4214.9,4214.8,20.98565697]
[1754815673645,0.04,4214.9,4214.8,19.11005697]
[1754815673856,0.04,4214.9,4214.8,18.67725697]
[1754815674059,0.5117,4214.9,4214.8,9.23270886]
[1754815674366,0.9445,4214.9,4214.8,9.23270886]
[1754815674663,0.9445,4214.9,4214.8,5.59070886]
[1754815675232,0.9445,4214.9,4214.8,13.8866946]
[1754815675233,0.04,4214.9,4214.8,13.8866946]
[1754815676764,0.04,4214.9,4214.8,5.59070886]
[1754815676965,0.9445,4214.9,4214.8,5.59070886]
[1754815677463,0.9445,4214.9,4214.8,3.21811705]
[1754815677841,0.9445,4214.9,4214.8,0.21811705]
[1754815680176,3.6607623,4214.9,4214.8,0.21811705]
[1754815680477,1.28822678,4214.9,4214.8,0.21811705]
[1754815681052,3.6607623,4214.9,4214.8,0.21811705]
[1754815682473,3.6607623,4214.9,4214.8,0.21699321]
[1754815687481,0.85542678,4214.9,4214.8,0.21699321]
[1754815687691,2.7562623,4214.9,4214.8,0.21699321]
[1754815687867,0.04,4214.9,4214.8,0.66759321]
[1754815688068,0.04,4214.9,4214.8,0.21699321]
[1754815688269,0.04,4214.9,4214.6,5.37269516]
[1754815688447,0.04,4214.9,4214.7,0.21738435]
[1754815688650,0.04,4214.9,4214.8,0.21738435]
[1754815689081,0.9445,4214.9,4214.8,0.21738435]
[1754815689860,0.5117,4214.9,4214.8,0.21738435]
[1754815690872,0.04,4214.9,4214.8,0.21738435]
[1754815691062,0.38372782,4214.9,4214.8,0.21738435]
[1754815691272,0.04,4214.9,4214.8,0.21742546]
[1754815691950,0.04,4214.9,4214.8,2.59001727]
[1754815692355,0.04,4214.9,4214.8,0.21742546]
[1754815694175,0.04,4214.9,4214.7,2.37264735]
[1754815694353,0.04,4214.9,4214.8,0.21749127]
[1754815696100,0.04,4214.9,4214.8,0.21751118]
[1754815696862,0.04,4214.9,4214.8,3.02290299]
[1754815697485,0.04,4214.9,4214.8,15.27682728]
[1754815697687,0.04,4214.9,4214.8,15.77492728]
[1754815698071,0.042,4214.9,4214.8,15.77492728]
[1754815698364,0.042,4214.9,4214.8,16.32492728]
[1754815699895,0.042,4214.9,4214.8,17.74992728]
[1754815702718,1e-08,4215.0,4214.9,5.37253552]
[1754815702894,1e-08,4215.0,4214.9,13.24984831]
[1754815704632,0.04,4215.9,4215.8,14.21801477]
[1754815704793,0.04,4215.9,4215.8,18.07350499]
[1754815705123,0.04,4215.9,4215.8,19.03520499]
[1754815706925,1e-08,4215.9,4215.8,19.03520499]
[1754815707227,1e-08,4215.9,4215.8,19.8747645]
[1754815707442,1e-08,4215.9,4215.8,21.2997645]
[1754815708690,1e-08,4215.9,4215.8,19.8747645]
[1754815709025,1e-08,4215.9,4215.8,9.84858854]
[1754815709225,1e-08,4215.9,4215.8,10.06505708]
[1754815710306,1e-08,4215.9,4215.8,6.42805708]
[1754815710496,1e-08,4215.9,4215.8,10.06505708]
[1754815710698,1e-08,4215.9,4215.8,6.42805708]
[1754815710926,1e-08,4215.9,4215.8,10.06505708]
[1754815711106,1e-08,4215.9,4215.8,10.52865708]
[1754815711302,1e-08,4215.9,4215.8,11.57675708]
[1754815714602,1e-08,4215.9,4215.8,11.69515708]
[1754815714800,1e-08,4215.9,4215.8,11.19705708]
[1754815715903,1e-08,4215.9,4215.8,10.18245708]
[1754815716101,1e-08,4215.9,4215.8,6.54645708]
[1754815717926,1e-08,4215.9,4215.8,3.54645708]
[1754815718235,0.45380001,4215.9,4215.8,3.33486854]
[1754815718439,0.92740001,4215.9,4215.8,5.70689757]
[1754815718603,0.92740001,4215.9,4215.8,0.21646854]
[1754815719141,0.92740001,4215.9,4215.8,5.58849757]
[1754815719439,0.92740001,4215.9,4215.8,3.21646854]
[1754815720208,0.92940001,4215.9,4215.8,3.21646854]
[1754815720737,0.92940001,4215.9,4215.8,3.21654]
[1754815723411,0.00200001,4215.9,4215.8,3.21654]
[1754815723611,0.45580001,4215.9,4215.8,3.2167388]
[1754815724008,0.92940001,4215.9,4215.8,3.2167388]
[1754815725429,0.45580001,4215.9,4215.8,3.2167388]
[1754815728321,0.00200001,4215.9,4215.8,3.2167388]
[1754815729415,0.00200001,4215.9,4215.8,5.58876783]
[1754815729615,0.00200001,4215.9,4215.8,3.2167388]
[1754815730151,0.00200001,4215.9,4215.8,5.58876783]
[1754815730557,0.00200001,4215.9,4215.8,14.78755357]
[1754815730724,0.00200001,4215.9,4215.8,14.90595357]
[1754815731317,0.00200001,4215.9,4215.8,19.09095357]
[1754815732465,0.00200001,4215.9,4215.8,12.21996783]
[1754815732656,0.00200001,4215.9,4215.8,20.51595357]
[1754815733147,1e-08,4215.9,4215.8,20.51595357]
[1754815733353,1e-08,4215.9,4215.8,16.88095357]
[1754815733554,1e-08,4215.9,4215.8,20.51595357]
[1754815735449,1e-08,4215.9,4215.8,20.5161242]
[1754815741760,1e-08,4215.9,4215.8,20.5171242]
[1754815748840,1e-08,4215.9,4215.8,20.30021477]
[1754815749041,1e-08,4215.9,4215.8,20.51657684]
[1754815750004,1e-08,4215.9,4215.8,20.05537684]
[1754815750767,1e-08,4215.9,4215.8,20.26537684]
[1754815752773,1e-08,4215.9,4215.8,20.72657684]
[1754815757674,0.86670001,4216.6,4216.5,2.37163524]
[1754815757874,0.86670001,4216.6,4216.5,9.21999731]
[1754815758079,0.86670001,4216.6,4216.5,9.33839731]
[1754815758280,0.86670001,4216.6,4216.5,10.05023631]
[1754815760077,0.86670001,4216.6,4216.5,6.41823631]
[1754815760654,0.40700001,4216.6,4216.5,6.41823631]
[1754815763191,0.4601,4216.8,4216.7,2.37152275]
[1754815763494,0.9576,4216.8,4216.7,5.58788482]
[1754815763985,0.04,4216.9,4216.8,2.37146651]
[1754815764280,0.04,4216.9,4216.8,2.70622858]
[1754815764452,0.04,4216.9,4216.8,6.33722858]
[1754815766057,0.04,4216.9,4216.8,2.70622858]
[1754815767069,0.04,4216.9,4216.8,5.70622858]
[1754815776822,0.9976,4216.9,4216.8,5.58782858]
[1754815777384,0.5375,4216.9,4216.8,5.58782858]
[1754815778011,0.9976,4216.9,4216.8,5.58782858]
[1754815779108,0.5375,4216.9,4216.8,5.58782858]
[1754815780118,0.04,4216.9,4216.8,5.58782858]
[1754815783926,0.04,4216.9,4216.8,5.58815772]
[1754815786013,0.042,4216.9,4216.8,5.58815772]
[1754815788701,0.042,4216.9,4216.8,11.46878053]
[1754815788897,0.042,4216.9,4216.8,6.85998053]
[1754815789099,0.042,4216.9,4216.8,10.91878053]
[1754815789316,0.042,4216.9,4216.8,11.41168053]
[1754815790213,0.042,4216.9,4216.8,11.96168053]
[1754815792248,0.042,4216.9,4216.8,11.41168053]
[1754815792560,0.042,4216.9,4216.8,11.19498932]
[1754815792715,0.042,4216.9,4216.8,11.4115587]
[1754815794001,0.042,4216.9,4216.8,6.8598587]
[1754815794207,0.042,4216.9,4216.8,10.9176587]
[1754815794520,0.042,4216.9,4216.8,11.4105587]
[1754815795863,0.042,4216.9,4216.8,10.4878587]
[1754815796230,0.042,4216.9,4216.8,10.9176587]
[1754815796431,0.042,4216.9,4216.8,21.18864444]
[1754815796769,0.042,4216.9,4216.8,20.25654444]
[1754815797271,0.042,4216.9,4216.8,6.8598587]
[1754815797564,0.042,4216.9,4216.8,10.9176587]
[1754815797959,0.042,4216.9,4216.8,11.4105587]
[1754815798766,0.042,4216.9,4216.8,12.0789587]
[1754815799853,0.042,4216.9,4216.8,10.6062587]
[1754815800357,0.042,4216.9,4216.8,11.0360587]
[1754815800958,0.042,4216.9,4216.8,11.5289587]
[1754815801160,0.042,4216.9,4216.8,19.82494444]
[1754815801361,0.042,4216.9,4216.8,20.37494444]
[1754815801766,0.04,4217.9,4217.7,2.92096047]
[1754815801974,0.04,4217.9,4217.8,13.88345938]
[1754815802298,0.04,4217.9,4217.8,9.87333291]
[1754815802630,0.04,4217.9,4217.8,9.22047364]
[1754815802951,0.04,4217.9,4217.8,10.14317364]
[1754815803456,0.04,4217.9,4217.8,10.69317364]
[1754815804283,1e-08,4217.9,4217.8,12.11817364]
[1754815806370,1e-08,4217.9,4217.8,12.11752703]
[1754815807815,1e-08,4217.9,4217.8,6.01662703]
[1754815808018,1e-08,4217.9,4217.8,9.65162703]
[1754815808175,1e-08,4217.9,4217.8,6.01662703]
[1754815808511,0.00200001,4217.9,4217.8,9.77282703]
[1754815809305,0.00200001,4217.9,4217.8,9.77182703]
[1754815809486,0.00200001,4217.9,4217.8,6.13682703]
[1754815809687,0.00200001,4217.9,4217.8,9.77182703]
[1754815810772,0.00200001,4217.9,4217.8,5.58682703]
[1754815811003,0.00200001,4217.9,4217.8,9.22082703]
[1754815811589,0.00200001,4217.9,4217.8,5.58682703]
[1754815811783,0.00200001,4217.9,4217.8,9.34022703]
[1754815812394,0.00200001,4217.9,4217.8,18.55891277]
[1754815812794,0.00200001,4217.9,4217.8,18.06601277]
[1754815813107,0.00200001,4217.9,4217.8,17.63621277]
[1754815813927,0.00200001,4217.9,4217.8,0.33432277]
[1754815814232,1.03920001,4217.9,4217.8,0.21592277]
[1754815814889,3.41004806,4217.9,4217.8,0.21656142]
[1754815815090,1.03920001,4217.9,4217.8,0.21656142]
[1754815815797,3.41004806,4217.9,4217.8,0.21656142]
[1754815816212,1.03920001,4217.9,4217.8,0.21656142]
[1754815816413,3.41004806,4217.9,4217.8,0.21656142]
[1754815816837,3.75105287,4217.9,4217.8,0.21656142]
[1754815817004,0.12040001,4217.9,4217.8,2.58746568]
[1754815817336,0.00200001,4217.9,4217.8,0.21656142]
[1754815817679,0.90600001,4217.9,4217.8,0.21656142]
[1754815817937,3.60452319,4217.9,4217.8,0.21656142]
[1754815818297,1.23367514,4217.9,4217.8,0.21656142]
[1754815818493,0.90600001,4217.9,4217.8,0.21656142]
[1754815818916,3.27684806,4217.9,4217.8,0.21656142]
[1754815820601,0.90600001,4217.9,4217.8,0.21711601]
[1754815820803,3.27688137,4217.9,4217.8,0.21711601]
[1754815821325,3.84164678,4217.9,4217.8,0.21711601]
[1754815822254,3.84161347,4217.9,4217.8,0.21711601]
[1754815822415,2.93761347,4217.9,4217.8,0.21711601]
[1754815822849,3.40491347,4217.9,4217.8,0.21711601]
[1754815823158,3.84161347,4217.9,4217.8,0.21711601]
[1754815823525,3.84161347,4217.9,4217.8,0.21713167]
[1754815827267,1.47076542,4217.9,4217.8,0.21713167]
[1754815827561,1.03406542,4217.9,4217.8,0.21713167]
[1754815827759,3.96001347,4217.9,4217.8,0.21713167]
[1754815829020,5.22416542,4217.9,4217.8,0.21713167]
[1754815829221,7.59501347,4217.9,4217.8,0.21713167]
[1754815833254,7.15831347,4217.9,4217.8,0.21713167]
[1754815833728,6.69101347,4217.9,4217.8,0.21713167]
[1754815833935,0.68516542,4217.9,4217.8,0.21713167]
[1754815834135,3.75240001,4217.9,4217.8,1.14853167]
[1754815834642,0.12040001,4217.9,4217.8,1.14853167]
[1754815834847,0.12040001,4217.9,4217.8,3.51943593]
[1754815835064,0.12040001,4217.9,4217.8,3.51928948]
[1754815835264,0.12040001,4217.9,4217.8,1.14838522]
[1754815835438,0.12040001,4217.9,4217.8,0.21698522]
[1754815835752,2.86648806,4217.9,4217.8,0.21698522]
[1754815836216,0.49564001,4217.9,4217.8,0.21698522]
[1754815837771,2.86648806,4217.9,4217.8,0.21698522]
[1754815837954,3.77048806,4217.9,4217.8,0.21698522]
[1754815838131,3.33378806,4217.9,4217.8,0.21698522]
[1754815838442,2.86648806,4217.9,4217.8,0.21698522]
[1754815840532,6.49648806,4217.9,4217.8,0.21698522]
[1754815843771,4.12564001,4217.9,4217.8,0.21698522]
[1754815843951,6.49648806,4217.9,4217.8,0.21698522]
[1754815844155,4.12564001,4217.9,4217.3,2.3711783]
[1754815844358,3.63200001,4217.9,4217.8,0.4712]
[1754815844558,3.63200001,4217.9,4217.8,0.21779781]
[1754815844559,6.00284806,4217.9,4217.8,0.21779781]
[1754815844764,3.75040001,4217.9,4217.8,0.21779781]
[1754815845477,6.12124806,4217.9,4217.8,0.21779781]
[1754815845636,0.12040001,4217.9,4217.8,0.21779781]
[1754815845964,0.12040001,4217.9,4217.8,4.14919781]
[1754815846167,0.12040001,4217.9,4217.8,3.21779781]
[1754815846335,3.75940001,4217.9,4217.8,3.21779781]
[1754815847748,3.75940001,4217.9,4217.8,3.67699781]
[1754815848663,3.70012901,4217.9,4217.8,3.21779781]
[1754815848864,4.07014191,4217.9,4217.8,3.21779781]
[1754815852289,6.44098996,4217.9,4217.8,0.21779781]
[1754815852463,7.35278996,4217.9,4217.8,0.21779781]
[1754815852842,6.89308996,4217.9,4217.8,0.21779781]
[1754815853066,6.44098996,4217.9,4217.8,0.21779781]
[1754815853371,0.06112901,4217.9,4217.8,0.67699781]
[1754815853551,6.06897706,4217.9,4217.8,0.21779781]
[1754815854347,3.69812901,4217.9,4217.8,0.21779781]
[1754815854547,6.06897706,4217.9,4217.8,0.21779781]
[1754815855188,6.91294987,4217.9,4217.8,0.21779781]
[1754815859952,0.1184,4217.9,4217.8,1.14089781]
[1754815860155,3.7544,4217.9,4217.8,1.14089781]
[1754815861085,3.7544,4217.9,4217.8,1.14054003]
[1754815868574,3.7544,4217.9,4217.8,0.67664003]
[1754815868776,3.7544,4217.9,4217.8,0.21744003]
[1754815869800,3.7544,4217.9,4217.8,0.67664003]
[1754815870006,3.7544,4217.9,4217.8,1.14054003]
[1754815872698,3.7544,4217.9,4217.8,0.21744003]
[1754815873196,3.7544,4217.9,4217.8,0.67664003]
[1754815873893,3.7544,4217.9,4217.8,0.21744003]
[1754815874699,3.7544,4217.9,4217.8,0.67664003]
[1754815883614,3.7544,4217.9,4217.8,0.6769497]
[1754815884515,3.7544,4217.9,4217.8,0.2177497]
[1754815886316,3.7544,4217.9,4217.8,0.217824]
[1754815887213,6.12524805,4217.9,4217.8,0.217824]
[1754815887428,3.7544,4217.9,4217.8,0.217824]
[1754815888508,6.12524805,4217.9,4217.8,0.217824]
[1754815889622,3.7544,4217.9,4217.8,0.217824]
[1754815889826,6.97483735,4217.9,4217.8,0.217824]
[1754815890124,7.04624805,4217.9,4217.8,0.217824]
[1754815892219,2.37114243,4217.4,4216.9,0.9431]
[1754815892523,0.1184,4217.2,4217.0,0.21789057]
[1754815892689,3.629,4217.1,4217.0,0.4475]
[1754815892897,3.629,4217.1,4217.0,0.66540484]
[1754815893790,3.629,4217.1,4217.0,0.21790484]
[1754815895103,0.1184,4217.2,4217.0,0.21790484]
[1754815895308,6.11864158,4217.2,4217.1,1.16000484]
[1754815895825,6.11864158,4217.2,4217.1,0.66540484]
[1754815896616,6.11864158,4217.2,4217.1,0.21790484]
[1754815899392,3.7474,4217.2,4217.1,0.21790484]
[1754815900613,0.1184,4217.2,4217.1,0.21790484]
[1754815900924,3.7474,4217.2,4217.1,0.21790484]
[1754815905797,0.1184,4217.2,4217.1,0.21790484]
[1754815906005,3.7474,4217.2,4217.1,6.53130265]
[1754815907122,0.1184,4217.2,4217.1,6.53130265]
[1754815907328,3.629,4217.3,4217.2,5.37124158]
[1754815907527,3.629,4217.3,4217.2,5.58914642]
[1754815907830,3.629,4217.3,4217.2,6.52284642]
[1754815908241,0.1184,4217.5,4217.4,2.37112913]
[1754815908441,3.7474,4217.5,4217.4,5.58903397]
[1754815908643,0.1184,4217.5,4217.4,5.58903397]
[1754815908851,0.002,4217.9,4217.5,3.0]
[1754815908852,3.629,4217.8,4217.5,3.0]
[1754815909052,3.7474,4217.8,4217.7,2.37096047]
[1754815909337,3.7474,4217.8,4217.7,3.52256531]
[1754815910304,3.7474,4217.8,4217.7,6.52256531]
[1754815911602,3.7474,4217.8,4217.7,4.15160484]
[1754815911807,3.7474,4217.8,4217.7,3.68600484]
[1754815912034,3.7474,4217.8,4217.7,3.21790484]
[1754815913339,3.7474,4217.8,4217.7,3.68600484]
[1754815913644,3.7464,4217.8,4217.7,3.68600484]
[1754815916052,3.7464,4217.8,4217.7,3.21790484]
[1754815916347,6.56870426,4217.8,4217.7,3.21790484]
[1754815916554,7.50871476,4217.8,4217.7,3.21790484]
[1754815916845,7.50871476,4217.8,4217.7,0.21790484]
[1754815916846,7.96731476,4217.8,4217.7,0.21790484]
[1754815917410,7.05731476,4217.8,4217.7,0.21790484]
[1754815917767,7.96731476,4217.8,4217.7,0.21790484]
[1754815919827,4.33931476,4217.8,4217.7,0.21790484]
[1754815920027,7.96731476,4217.8,4217.7,0.21790484]
[1754815920958,7.96731476,4217.8,4217.7,0.21734026]
[1754815921661,7.05731476,4217.8,4217.7,0.21734026]
[1754815922159,0.1184,4217.8,4217.7,0.21734026]
[1754815922455,6.11730426,4217.8,4217.7,1.15104026]
[1754815922664,6.11730426,4217.8,4217.7,0.68544026]
[1754815922827,3.7464,4217.8,4217.7,0.68544026]
[1754815923426,3.7464,4217.8,4217.7,1.15104026]
[1754815925070,0.1184,4217.8,4217.7,1.15104026]
[1754815925273,3.7464,4217.8,4217.7,1.15104026]
[1754815927272,0.1184,4217.8,4217.7,2.63285107]
[1754815927453,3.628,4217.8,4217.7,2.63285107]
[1754815928324,3.628,4217.8,4217.7,8.71549354]
[1754815928739,0.002,4217.9,4217.7,8.71549354]
[1754815928957,3.627,4217.8,4217.7,7.56445328]
[1754815929174,3.627,4217.8,4217.7,7.78153308]
[1754815929673,3.627,4217.8,4217.7,8.71523308]
[1754815930159,0.002,4217.9,4217.7,6.34427261]
[1754815930370,0.002,4217.9,4217.8,1.1507798]
[1754815930876,0.002,4217.9,4214.7,0.21]
[1754815930877,0.37674,4217.9,4217.1,0.001]
[1754815931042,0.37674,4217.9,4217.2,0.9337]
[1754815931439,2.37112872,4217.5,4217.2,0.9337]
[1754815931638,3.627,4217.4,4217.2,0.4656]
[1754815931841,3.627,4217.4,4217.1,0.001]
[1754815932039,5.99817235,4217.4,4217.1,0.001]
[1754815932374,2.37118535,4217.3,4217.1,0.001]
[1754815932541,6.75489055,4217.4,4217.1,0.001]
[1754815932842,2.37119497,4217.3,4217.1,0.001]
[1754815933654,4.38374532,4217.4,4217.1,0.001]
[1754815934047,2.37122571,4217.3,4217.1,0.001]
[1754815934254,3.09254537,4217.3,4217.1,0.001]
[1754815934574,3.627,4217.2,4217.1,0.001]
[1754815935678,3.627,4217.2,4217.1,0.4666]
[1754815936746,3.627,4217.2,4217.1,0.9347]
[1754815936942,0.002,4217.9,4217.1,0.9347]
[1754815937256,3.627,4217.8,4217.2,0.9337]
[1754815937454,3.627,4217.8,4217.2,2.37119472]
[1754815937659,3.627,4217.8,4217.3,3.9644]
[1754815937863,3.627,4217.8,4217.4,0.9644]
[1754815938194,0.002,4217.9,4217.4,0.9644]
[1754815938488,3.627,4217.8,4217.5,3.33546268]
[1754815938650,3.627,4217.8,4217.6,0.9644]
[1754815938854,3.627,4217.8,4217.3,0.4986]
[1754815939054,3.627,4217.8,4217.4,0.4986]
[1754815939681,3.627,4217.8,4217.5,0.4986]
[1754815939888,3.627,4217.8,4217.2,4.21037]
[1754815940389,3.627,4217.8,4217.2,3.58160768]
[1754815940986,0.1184,4217.6,4217.4,3.0]
[1754815941190,3.627,4217.5,4217.4,0.4658]
[1754815941661,3.627,4217.5,4217.4,0.9644]
[1754815942788,3.627,4217.5,4217.4,1.18172193]
[1754815943273,3.627,4217.5,4217.4,0.71592193]
[1754815943474,3.627,4217.5,4217.4,1.18172193]
[1754815945274,3.627,4217.5,4217.4,0.71592193]
[1754815946090,3.627,4217.5,4217.4,0.21732193]
[1754815946963,6.60971483,4217.5,4217.4,0.21732193]
[1754815947508,7.05831483,4217.5,4217.4,0.21732193]
[1754815949108,6.60971483,4217.5,4217.4,0.21732193]
[1754815955097,2.98271483,4217.5,4217.4,0.21732193]
[1754815955304,7.05731483,4217.5,4217.4,0.21732193]
[1754815956539,6.60871483,4217.5,4217.4,0.21732193]
[1754815956822,7.05731483,4217.5,4217.4,0.21732193]
[1754815957026,6.60871483,4217.5,4217.4,0.21732193]
[1754815957529,7.05731483,4217.5,4217.4,0.21732193]
[1754815958794,6.60871483,4217.5,4217.4,0.21732193]
[1754815959338,2.98271483,4217.5,4217.4,0.21732193]
[1754815959492,6.60871483,4217.5,4217.4,1.18172193]
[1754815960325,6.60871483,4217.5,4217.4,0.71592193]
[1754815960936,6.60871483,4217.5,4217.4,0.7160054]
[1754815962762,6.60871483,4217.5,4217.4,0.2174054]
[1754815963824,2.37112913,4217.4,4217.3,0.001]
[1754815964025,3.28115353,4217.4,4217.3,0.21813607]
[1754815964662,3.28115353,4217.4,4217.3,0.21813557]
[1754815965449,3.28115353,4217.4,4217.3,0.71673557]
[1754815967178,4.5360244,4217.4,4217.3,1.18253557]
[1754815967673,3.626,4217.4,4217.3,1.18253557]
[1754815969299,0.1184,4217.6,4217.3,1.18253557]
[1754815969502,0.1184,4217.6,4217.5,2.37107291]
[1754815969657,0.1184,4217.6,4217.5,5.58820848]
[1754815969860,3.7444,4217.6,4217.5,6.51780848]
[1754815971150,3.7444,4217.6,4217.5,7.22957848]
[1754815972079,0.1184,4217.6,4217.5,7.22957848]
[1754815972662,0.1184,4217.6,4217.5,7.01244291]
[1754815972991,0.1184,4217.6,4217.5,7.22931168]
[1754815973281,0.1184,4217.6,4217.5,7.2293169]
[1754815973684,0.1184,4217.6,4217.5,8.18946333]
[1754815974254,0.1184,4217.6,4217.5,7.2293169]
[1754815974458,0.002,4217.7,4217.6,5.37101669]
[1754815974656,0.002,4217.7,4217.6,6.51749068]
[1754815977229,1e-08,4217.7,4217.6,7.06749068]
[1754815981192,1e-08,4217.7,4217.6,7.0667724]
[1754815981597,1e-08,4217.7,4217.6,10.6907724]
[1754815983393,1e-08,4217.7,4217.6,10.6897724]
[1754815983594,1e-08,4217.7,4217.6,7.0667724]
[1754815983792,1e-08,4217.7,4217.6,6.6850724]
[1754815984020,1e-08,4217.7,4217.6,2.5871724]
[1754815984226,1e-08,4217.7,4217.6,6.2101724]
[1754815984404,1e-08,4217.7,4217.6,9.2101724]
[1754815984598,1e-08,4217.7,4217.6,9.6850724]
[1754815984804,1e-08,4217.7,4217.6,10.1397724]
[1754815985806,1e-08,4217.7,4217.6,9.2101724]
[1754815987029,1e-08,4217.7,4217.6,6.83915571]
[1754815987233,1e-08,4217.7,4217.6,5.5871724]
[1754815987531,0.45720001,4217.7,4217.6,3.21615571]